fUSD/lending_fUSD_20240227
["ID","MTS","AMOUNT","RATE_DAILY","PERIOD"]
[315376921,1708997448866,-500.0,0.00022739,2]
[315376923,1708997448875,-500.0,0.00022739,2]
[315376925,1708997448884,-550.74468549,0.00022739,2]
[315376927,1708997448893,-500.0,0.00022739,2]
[315376929,1708997448902,-500.0,0.00022739,2]
[315376931,1708997448911,-500.0,0.00022739,2]
[315376933,1708997448920,-500.0,0.00022739,2]
[315376935,1708997448930,-500.0,0.00022739,2]
[315376937,1708997448939,-500.0,0.00022739,2]
[315376939,1708997448947,-500.0,0.00022739,2]
[315376941,1708997448956,-500.0,0.00022739,2]
[315376943,1708997448966,-500.0,0.00022739,2]
[315376945,1708997448975,-197.58277184,0.00022739,2]
[315376947,1708997448984,-503.0237096,0.00022739,2]
[315376949,1708997448993,-500.0,0.00022739,2]
[315376951,1708997449003,-500.0,0.00022739,2]
[315376953,1708997449013,-434.70218665,0.00022739,2]
[315376955,1708997449023,-500.39842585,0.00022739,2]
[315376957,1708997449033,-500.0,0.00022739,2]
[315376959,1708997449042,-479.93666053,0.00022739,2]
[315376961,1708997449052,-500.0,0.00022739,2]
[315376963,1708997449061,-500.0,0.00022739,2]
[315376965,1708997449070,-500.0,0.00022739,2]
[315376967,1708997449079,-500.0,0.00022739,2]
[315376969,1708997449088,-500.0,0.00022739,2]
[315376971,1708997449098,-500.0,0.00022739,2]
[315376973,1708997449108,-514.25455922,0.00022739,2]
[315376975,1708997449117,-500.0,0.00022739,2]
[315376977,1708997449126,-500.0,0.00022739,2]
[315376979,1708997449135,-363.96,0.00022739,2]
[315376981,1708997449145,-500.0,0.00022739,2]
[315376984,1708997449160,-500.0,0.00022739,2]
[315376985,1708997449170,-500.0,0.00022739,2]
[315376988,1708997449179,-500.0,0.00022739,2]
[315376990,1708997449188,-500.0,0.00022739,2]
[315376992,1708997449198,-500.0,0.00022739,2]
[315376993,1708997449208,-501.65300421,0.00022739,2]
[315376996,1708997449217,-500.0,0.00022739,2]
[315376998,1708997449227,-500.0,0.00022739,2]
[315376999,1708997449236,-500.0,0.00022739,2]
[315377001,1708997449245,-118.42125278,0.00022739,2]
[315377007,1708997449337,-381.57874722,0.00022739,2]
[315377008,1708997449349,-309.02629855,0.00022739,2]
[315377009,1708997449367,-190.97370145,0.00022739,2]
[315377010,1708997449376,-158.29917218,0.00022739,2]
[315377011,1708997449393,-341.70082782,0.00022739,2]
[315377013,1708997449402,-274.93862584,0.00022739,2]
[315377015,1708997449414,-225.06137416,0.00022739,2]
[315377017,1708997449425,-210.09138803,0.00022739,2]
[315377020,1708997449438,-27.22861197,0.00022739,2]
[315377022,1708997449447,-500.0,0.00022739,2]
[315377024,1708997449456,-444.94888736,0.00022739,2]
[315377026,1708997449468,-55.05111264,0.00022739,2]
[315377028,1708997449477,-500.0,0.00022739,2]
[315377030,1708997449486,-500.0,0.00022739,2]
[315377032,1708997449495,-500.0,0.00022739,2]
[315377034,1708997449504,-500.0,0.00022739,2]
[315377036,1708997449514,-500.0,0.00022739,2]
[315377038,1708997449523,-500.0,0.00022739,2]
[315377040,1708997449532,-500.0,0.00022739,2]
[315377042,1708997449541,-500.0,0.00022739,2]
[315377044,1708997449551,-500.0,0.00022739,2]
[315377046,1708997449561,-500.0,0.00022739,2]
[315377048,1708997449570,-500.0,0.00022739,2]
[315377050,1708997449578,-500.0,0.00022739,2]
[315377052,1708997449587,-500.0,0.00022739,2]
[315377054,1708997449597,-500.0,0.00022739,2]
[315377056,1708997449606,-500.0,0.00022739,2]
[315377058,1708997449615,-500.0,0.00022739,2]
[315377060,1708997449624,-500.0,0.00022739,2]
[315377062,1708997449633,-500.0,0.00022739,2]
[315377064,1708997449642,-500.0,0.00022739,2]
[315377066,1708997449651,-500.0,0.00022739,2]
[315377068,1708997449660,-500.0,0.00022739,2]
[315377070,1708997449669,-500.0,0.00022739,2]
[315377072,1708997449679,-500.0,0.00022739,2]
[315377074,1708997449688,-500.0,0.00022739,2]
[315377076,1708997449697,-500.0,0.00022739,2]
[315377078,1708997449707,-500.0,0.00022739,2]
[315377081,1708997449717,-500.0,0.00022739,2]
[315377082,1708997449726,-500.0,0.00022739,2]
[315377084,1708997449735,-500.0,0.00022739,2]
[315377086,1708997449745,-500.0,0.00022739,2]
[315377089,1708997449757,-500.0,0.00022739,2]
[315377090,1708997449766,-500.0,0.00022739,2]
[315377093,1708997449776,-500.0,0.00022739,2]
[315377095,1708997449785,-500.0,0.00022739,2]
[315377097,1708997449794,-500.0,0.00022739,2]
[315377099,1708997449803,-500.0,0.00022739,2]
[315377101,1708997449813,-500.0,0.00022739,2]
[315377103,1708997449822,-500.0,0.00022739,2]
[315377104,1708997449832,-500.0,0.00022739,2]
[315377107,1708997449841,-500.0,0.00022739,2]
[315377109,1708997449851,-500.0,0.00022739,2]
[315377111,1708997449860,-500.0,0.00022739,2]
[315377112,1708997449869,-500.0,0.00022739,2]
[315377114,1708997449878,-500.0,0.00022739,2]
[315377116,1708997449887,-500.0,0.00022739,2]
[315377118,1708997449898,-500.0,0.00022739,2]
[315377120,1708997449907,-500.0,0.00022739,2]
[315377122,1708997449916,-500.0,0.00022739,2]
[315377124,1708997449925,-500.0,0.00022739,2]
[315377126,1708997449934,-500.0,0.00022739,2]
[315377129,1708997449944,-500.0,0.00022739,2]
[315377130,1708997449953,-500.0,0.00022739,2]
[315377132,1708997449962,-500.0,0.00022739,2]
[315377134,1708997449971,-500.0,0.00022739,2]
[315377136,1708997449980,-500.0,0.00022739,2]
[315377138,1708997449989,-500.0,0.00022739,2]
[315377140,1708997449998,-500.0,0.00022739,2]
[315377142,1708997450007,-500.0,0.00022739,2]
[315377144,1708997450016,-500.0,0.00022739,2]
[315377146,1708997450025,-500.0,0.00022739,2]
[315377172,1708997450256,-500.0,0.00022739,2]
[315377174,1708997450266,-500.0,0.00022739,2]
[315377176,1708997450276,-500.0,0.00022739,2]
[315377178,1708997450285,-500.0,0.00022739,2]
[315377180,1708997450295,-500.0,0.00022739,2]
[315377182,1708997450305,-500.0,0.00022739,2]
[315377184,1708997450315,-500.0,0.00022739,2]
[315377186,1708997450327,-500.0,0.00022739,2]
[315377188,1708997450339,-500.0,0.00022739,2]
[315377190,1708997450349,-159.790579,0.00022739,2]
[315377195,1708997450383,-340.209421,0.00022739,2]
[315377197,1708997450392,-112.68998254,0.00022739,2]
[315377211,1708997450520,-387.31001746,0.00022739,2]
[315377213,1708997450529,-500.0,0.00022739,2]
[315377215,1708997450538,-500.0,0.00022739,2]
[315377217,1708997450548,-500.0,0.00022739,2]
[315377219,1708997450557,-161.49,0.00022739,2]
[315377221,1708997450567,-147.03338141,0.00022739,2]
[315377224,1708997450580,-352.96661859,0.00022739,2]
[315377225,1708997450590,-500.0,0.00022739,2]
[315377228,1708997450600,-500.0,0.00022739,2]
[315377229,1708997450610,-230.58082646,0.00022739,2]
[315377232,1708997450623,-269.41917354,0.00022739,2]
[315377234,1708997450634,-500.0,0.00022739,2]
[315377236,1708997450645,-635.65,0.00022739,2]
[315377238,1708997450654,-500.0,0.00022739,2]
[315377240,1708997450663,-145.07776683,0.00022739,2]
[315377242,1708997450676,-354.92223317,0.00022739,2]
[315377244,1708997450685,-500.0,0.00022739,2]
[315377246,1708997450694,-19.51198302,0.00022739,2]
[315377248,1708997450706,-315.26635435,0.00022739,2]
[315377249,1708997450717,-261.11566823,0.00022739,2]
[315377250,1708997450726,-3.18004435,0.00022739,2]
[315377251,1708997450754,-473.05077416,0.00022739,2]
[315377252,1708997450765,-23.76918149,0.00022739,2]
[315377253,1708997450774,-500.0,0.00022739,2]
[315377254,1708997450783,-150.0,0.00022739,2]
[315377255,1708997450792,-94.23081851,0.00022739,2]
[315377256,1708997450804,-55.76918149,0.00022739,2]
[315377257,1708997450813,-150.0,0.00022739,2]
[315377258,1708997450822,-500.0,0.00022739,2]
[315377259,1708997450832,-409.253698,0.00022739,2]
[315377260,1708997450844,-90.746302,0.00022739,2]
[315377261,1708997450854,-500.0,0.00022739,2]
[315377262,1708997450863,-500.0,0.00022739,2]
[315377263,1708997450873,-500.0,0.00022739,2]
[315377264,1708997450882,-500.0,0.00022739,2]
[315377265,1708997450892,-500.0,0.00022739,2]
[315377266,1708997450901,-500.0,0.00022739,2]
[315377267,1708997450911,-500.0,0.00022739,2]
[315377268,1708997450920,-181.64,0.00022739,2]
[315377269,1708997450930,-280.09739035,0.00022739,2]
[315377285,1708997557404,-50000.0,0.00024,30]
[315377286,1708997624102,1566.73,0.000266,41]
[315377287,1708997753227,9877.0,0.00017,2]
[315377288,1708997753249,9877.0,0.00017,2]
[315377290,1708997787731,20000.0,0.00014,2]
[315377291,1708997795018,246.0,0.00014,2]
[315377293,1708997852246,341.1,0.000142,2]
[315377298,1708998002960,150.0,0.000142,2]
[315377299,1708998003173,150.0,0.000142,2]
[315377300,1708998003369,150.0,0.000142,2]
[315377301,1708998003802,150.0,0.000142,2]
[315377302,1708998003980,150.0,0.000142,2]
[315377303,1708998004172,299.80288215,0.000142,2]
[315377304,1708998130736,151.0,0.00026614,120]
[315377308,1708998462621,151.0,0.00026722,120]
[315377309,1708998545102,-628.40827271,0.00017981,2]
[315377310,1708998545124,-1004.98392641,0.00017982,2]
[315377311,1708998545147,-422.83228666,0.00017984,2]
[315377312,1708998545169,-242.0,0.00017999,2]
[315377313,1708998545190,-11.99605357,0.00018,2]
[315377314,1708998551114,-19988.00394643,0.00018,2]
[315377315,1708998551136,-162.35150589,0.00019277,2]
[315377316,1708998551165,-267.38849411,0.00019277,2]
[315377317,1708998551187,-170.87439885,0.00019466,2]
[315377318,1708998551207,-218.26,0.0002,2]
[315377319,1708998551229,-170.87439881,0.00020259,2]
[315377320,1708998551250,-202.0,0.00020384,2]
[315377322,1708998604383,202.0,0.0002035,2]
[315377328,1708998631435,-628.40827271,0.00021052,2]
[315377329,1708998631445,-170.87439881,0.00021053,2]
[315377330,1708998631455,-156.11,0.00021195,2]
[315377331,1708998631464,-202.0,0.00021341,3]
[315377332,1708998631473,-621.96,0.0002135,2]
[315377333,1708998631482,-2487.58,0.00021378,2]
[315377334,1708998631492,-454.0,0.00021408,2]
[315377335,1708998631502,-2553.49,0.00021413,2]
[315377336,1708998631511,-150.0,0.00021425,2]
[315377337,1708998631522,-697.44,0.00021463,2]
[315377338,1708998631532,-2000.0,0.0002147,2]
[315377339,1708998631794,-150.0,0.00021478,2]
[315377340,1708998631805,-150.0,0.00021478,2]
[315377341,1708998631817,-209.44,0.0002154,2]
[315377342,1708998631826,-429.74,0.00021541,2]
[315377343,1708998631836,-1000.0,0.00021608,2]
[315377344,1708998631845,-259.69,0.00021739,2]
[315377345,1708998631854,-170.87439881,0.00021846,2]
[315377346,1708998631864,-499.99,0.00021851,2]
[315377347,1708998631873,-14086.2451,0.00021851,2]
[315377348,1708998631883,-826.78,0.00021866,2]
[315377349,1708998631893,-259.69,0.00021876,2]
[315377350,1708998631902,-151.05,0.00021918,2]
[315377351,1708998631911,-165.09,0.00021918,2]
[315377352,1708998631920,-150.0,0.00021919,2]
[315377353,1708998631930,-826.52,0.00021954,2]
[315377354,1708998631940,-413.39,0.00021954,2]
[315377355,1708998631950,-413.39,0.00021954,2]
[315377356,1708998631959,-297.19,0.00021954,2]
[315377357,1708998631968,-413.39,0.00021954,2]
[315377358,1708998631978,-150.0,0.00021978,2]
[315377359,1708998631987,-199.65311081,0.00021983,2]
[315377360,1708998631997,-199.65311081,0.00021992,2]
[315377361,1708998632007,-199.65311081,0.00021992,2]
[315377362,1708998632017,-199.65311081,0.00021999,2]
[315377363,1708998632027,-2250.0,0.00022,3]
[315377364,1708998632037,-1000.0,0.00022008,3]
[315377365,1708998632047,-232.32353599,0.00022008,3]
[315377366,1708998632056,-2919.3022067,0.00022008,3]
[315377367,1708998632069,-259.69,0.00022013,2]
[315377368,1708998632078,-151.05,0.00022047,2]
[315377369,1708998632087,-165.85,0.00022134,2]
[315377370,1708998632097,-259.69,0.0002215,2]
[315377371,1708998632107,-151.05,0.00022176,2]
[315377372,1708998632117,-150.0,0.00022178,2]
[315377373,1708998632126,-259.69,0.00022287,2]
[315377374,1708998632135,-151.05,0.00022305,2]
[315377375,1708998632144,-202.0,0.00022332,4]
[315377376,1708998632154,-413.13,0.00022335,2]
[315377377,1708998632163,-259.69,0.00022424,2]
[315377378,1708998632172,-151.05,0.00022434,2]
[315377379,1708998632181,-889.6176,0.00022539,2]
[315377380,1708998632192,-295.85058593,0.00022561,2]
[315377381,1708998632201,-151.05,0.00022562,2]
[315377382,1708998632211,-2776.993988,0.000226,2]
[315377383,1708998632221,-2000.0,0.000226,2]
[315377384,1708998632230,-1537.0,0.000226,2]
[315377385,1708998632239,-200.0,0.0002261,2]
[315377386,1708998632249,-200.0,0.00022637,2]
[315377387,1708998632258,-800.0,0.00022637,2]
[315377388,1708998632267,-200.0,0.00022637,2]
[315377389,1708998632276,-500.0,0.00022637,2]
[315377390,1708998632286,-388.7898,0.00022638,2]
[315377391,1708998632295,-7085.0943,0.00022638,2]
[315377392,1708998632305,-2500.0,0.00022639,2]
[315377393,1708998632318,-9244.3171,0.00022639,2]
[315377394,1708998632328,-5000.0,0.00022639,2]
[315377395,1708998632337,-21288.00968705,0.00022639,2]
[315377396,1708998632350,-901.48502617,0.00022639,2]
[315377397,1708998632365,-2993.0,0.00022639,2]
[315377398,1708998632405,-1976.35546973,0.00022639,2]
[315377399,1708998635527,-28396.14981705,0.00022639,2]
[315377400,1708998635538,-6744.19905261,0.00022639,2]
[315377401,1708998635548,-216.47239303,0.00022639,2]
[315377402,1708998635558,-170.87439881,0.00022639,2]
[315377403,1708998635569,-478.44462085,0.00022639,2]
[315377404,1708998635579,-152.20570601,0.00022639,6]
[315377405,1708998635589,-4015.47690024,0.00022639,2]
[315377406,1708998635598,-259.99304329,0.00022639,2]
[315377407,1708998635607,-421.29076773,0.00022639,2]
[315377408,1708998635617,-857.14,0.0002269,2]
[315377409,1708998635627,-151.05,0.00022691,2]
[315377410,1708998635637,-1050.0,0.00022699,2]
[315377411,1708998635647,-1050.0,0.000227,2]
[315377412,1708998635657,-266.10991184,0.00022729,2]
[315377413,1708998635667,-266.10991184,0.00022729,2]
[315377414,1708998635676,-266.10991184,0.00022729,2]
[315377415,1708998635686,-1900.0,0.0002273,2]
[315377416,1708998635696,-1040.39872696,0.00022738,2]
[315377417,1708998635706,-12435.31051828,0.00022738,2]
[315377418,1708998635716,-204.62016545,0.00022738,2]
[315377419,1708998635727,-1842.77238089,0.00022738,2]
[315377420,1708998635737,-208.1543534,0.00022738,2]
[315377421,1708998635747,-500.0,0.00022738,2]
[315377422,1708998635756,-198.02694142,0.00022738,2]
[315377423,1708998635766,-597.96669533,0.00022738,2]
[315377424,1708998635776,-287.18234996,0.00022738,2]
[315377425,1708998635786,-454.08805403,0.00022738,2]
[315377426,1708998635795,-500.0,0.00022738,2]
[315377427,1708998635805,-500.0,0.00022738,2]
[315377428,1708998635815,-614.04482486,0.00022738,2]
[315377429,1708998635825,-366.49986846,0.00022738,2]
[315377430,1708998635835,-351.62226312,0.00022738,2]
[315377431,1708998635845,-228658.58895651,0.00022739,4]
[315377432,1708998635858,-22019.1,0.00022739,4]
[315377433,1708998635901,-60117.3250287,0.00022739,4]
[315377434,1708998635910,-270.35426401,0.00022739,2]
[315377435,1708998635920,-382.3514776,0.00022739,2]
[315377436,1708998635929,-502.23602264,0.00022739,2]
[315377437,1708998635939,-502.22030849,0.00022739,2]
[315377438,1708998635949,-503.02416424,0.00022739,2]
[315377439,1708998635959,-503.79398464,0.00022739,2]
[315377440,1708998635968,-500.95981511,0.00022739,2]
[315377441,1708998635977,-503.37832518,0.00022739,2]
[315377442,1708998635986,-407.27430941,0.00022739,2]
[315377443,1708998636001,-96.26103101,0.00022739,2]
[315377444,1708998636010,-500.58022394,0.00022739,2]
[315377445,1708998636019,-502.93984515,0.00022739,2]
[315377446,1708998636029,-501.39777018,0.00022739,2]
[315377447,1708998636039,-502.92588698,0.00022739,2]
[315377448,1708998636048,-505.52796036,0.00022739,2]
[315377449,1708998636057,-500.0,0.00022739,2]
[315377450,1708998636068,-503.62772545,0.00022739,2]
[315377451,1708998636077,-507.11583562,0.00022739,2]
[315377452,1708998636086,-500.0,0.00022739,2]
[315377453,1708998636095,-505.4217488,0.00022739,2]
[315377454,1708998636105,-500.0,0.00022739,2]
[315377455,1708998636115,-500.0,0.00022739,2]
[315377456,1708998636124,-500.0,0.00022739,2]
[315377457,1708998636133,-500.0,0.00022739,2]
[315377458,1708998636143,-500.0,0.00022739,2]
[315377459,1708998636152,-500.0,0.00022739,2]
[315377460,1708998636161,-500.0,0.00022739,2]
[315377461,1708998636170,-527.40550071,0.00022739,2]
[315377462,1708998636179,-519.28218867,0.00022739,2]
[315377463,1708998636188,-526.10919548,0.00022739,2]
[315377464,1708998636198,-500.0,0.00022739,2]
[315377465,1708998636208,-302.60508765,0.00022739,2]
[315377466,1708998636597,-197.39491235,0.00022739,2]
[315377467,1708998636606,-513.06157551,0.00022739,2]
[315377468,1708998636616,-503.97630748,0.00022739,2]
[315377469,1708998636625,-500.0,0.00022739,2]
[315377470,1708998636635,-511.93403564,0.00022739,2]
[315377471,1708998636644,-500.0,0.00022739,2]
[315377472,1708998636653,-513.15219869,0.00022739,2]
[315377473,1708998636662,-500.0,0.00022739,2]
[315377474,1708998636671,-500.0,0.00022739,2]
[315377475,1708998636680,-546.59788087,0.00022739,2]
[315377476,1708998636689,-509.95156469,0.00022739,2]
[315377477,1708998636699,-523.66386077,0.00022739,2]
[315377478,1708998636708,-500.0,0.00022739,2]
[315377479,1708998636717,-500.0,0.00022739,2]
[315377480,1708998636727,-487.84925879,0.00022739,2]
[315377481,1708998636737,-500.0,0.00022739,2]
[315377482,1708998636747,-508.07588208,0.00022739,2]
[315377483,1708998636756,-500.0,0.00022739,2]
[315377484,1708998636767,-500.0,0.00022739,2]
[315377485,1708998636776,-527.31735703,0.00022739,2]
[315377486,1708998636785,-517.68465097,0.00022739,2]
[315377487,1708998636795,-281.40915046,0.00022739,2]
[315377488,1708998636806,-500.0,0.00022739,2]
[315377489,1708998636817,-500.0,0.00022739,2]
[315377490,1708998636826,-500.0,0.00022739,2]
[315377491,1708998636835,-523.82296776,0.00022739,2]
[315377492,1708998636844,-500.0,0.00022739,2]
[315377493,1708998636854,-500.0,0.00022739,2]
[315377494,1708998636863,-500.0,0.00022739,2]
[315377495,1708998636872,-500.0,0.00022739,2]
[315377496,1708998636882,-500.0,0.00022739,2]
[315377497,1708998636892,-502.22316139,0.00022739,2]
[315377498,1708998636901,-529.44261991,0.00022739,2]
[315377499,1708998636911,-500.0,0.00022739,2]
[315377500,1708998636921,-500.0,0.00022739,2]
[315377501,1708998636930,-500.0,0.00022739,2]
[315377502,1708998636939,-500.0,0.00022739,2]
[315377503,1708998636949,-500.0,0.00022739,2]
[315377504,1708998636959,-526.17237757,0.00022739,2]
[315377505,1708998636968,-500.0,0.00022739,2]
[315377506,1708998636978,-500.0,0.00022739,2]
[315377507,1708998636987,-500.0,0.00022739,2]
[315377508,1708998636996,-516.64358212,0.00022739,2]
[315377509,1708998637005,-509.17066465,0.00022739,2]
[315377510,1708998637014,-504.25186724,0.00022739,2]
[315377511,1708998637023,-500.0,0.00022739,2]
[315377512,1708998637033,-500.0,0.00022739,2]
[315377513,1708998637044,-500.0,0.00022739,2]
[315377514,1708998637054,-500.0,0.00022739,2]
[315377515,1708998637064,-500.0,0.00022739,2]
[315377516,1708998637075,-500.0,0.00022739,2]
[315377517,1708998637085,-500.0,0.00022739,2]
[315377518,1708998637095,-529.66071824,0.00022739,2]
[315377519,1708998637104,-551.35272153,0.00022739,2]
[315377538,1708998637328,-500.0,0.00022739,2]
[315377541,1708998637338,-500.0,0.00022739,2]
[315377544,1708998637347,-500.0,0.00022739,2]
[315377546,1708998637357,-500.0,0.00022739,2]
[315377548,1708998637367,-526.81921662,0.00022739,2]
[315377549,1708998637376,-500.0,0.00022739,2]
[315377550,1708998637385,-500.0,0.00022739,2]
[315377551,1708998637394,-500.0,0.00022739,2]
[315377552,1708998637404,-577.50487063,0.00022739,2]
[315377554,1708998637413,-528.41594384,0.00022739,2]
[315377555,1708998637422,-500.0,0.00022739,2]
[315377556,1708998637432,-500.0,0.00022739,2]
[315377557,1708998637441,-500.0,0.00022739,2]
[315377558,1708998637451,-500.0,0.00022739,2]
[315377559,1708998637460,-500.0,0.00022739,2]
[315377560,1708998637469,-500.0,0.00022739,2]
[315377561,1708998637478,-500.0,0.00022739,2]
[315377562,1708998637488,-500.0,0.00022739,2]
[315377563,1708998637498,-500.0,0.00022739,2]
[315377564,1708998637507,-500.0,0.00022739,2]
[315377565,1708998637517,-500.0,0.00022739,2]
[315377566,1708998637528,-515.74594476,0.00022739,2]
[315377567,1708998637537,-500.0,0.00022739,2]
[315377568,1708998637547,-223.76333034,0.00022739,2]
[315377569,1708998637556,-500.0,0.00022739,2]
[315377570,1708998637567,-449.76671467,0.00022739,2]
[315377571,1708998637576,-500.0,0.00022739,2]
[315377572,1708998637586,-500.0,0.00022739,2]
[315377573,1708998637596,-500.0,0.00022739,2]
[315377574,1708998637605,-500.0,0.00022739,2]
[315377575,1708998637614,-531.16729572,0.00022739,2]
[315377576,1708998637624,-500.0,0.00022739,2]
[315377577,1708998637633,-500.0,0.00022739,2]
[315377578,1708998637642,-446.3357069,0.00022739,2]
[315377579,1708998637652,-504.46520719,0.00022739,2]
[315377580,1708998637661,-500.0,0.00022739,2]
[315377581,1708998637671,-500.0,0.00022739,2]
[315377582,1708998637680,-548.99899226,0.00022739,2]
[315377583,1708998637689,-500.0,0.00022739,2]
[315377584,1708998637699,-513.74254065,0.00022739,2]
[315377585,1708998637708,-510.62042606,0.00022739,2]
[315377586,1708998637718,-500.0,0.00022739,2]
[315377587,1708998637728,-500.0,0.00022739,2]
[315377588,1708998637738,-500.0,0.00022739,2]
[315377589,1708998637747,-507.7831546,0.00022739,2]
[315377590,1708998637756,-500.0,0.00022739,2]
[315377591,1708998637767,-500.0,0.00022739,2]
[315377592,1708998637777,-500.0,0.00022739,2]
[315377593,1708998637786,-500.0,0.00022739,2]
[315377594,1708998637796,-500.0,0.00022739,2]
[315377595,1708998637808,-500.0,0.00022739,2]
[315377596,1708998637821,-500.0,0.00022739,2]
[315377597,1708998637830,-500.0,0.00022739,2]
[315377598,1708998637840,-500.0,0.00022739,2]
[315377599,1708998637849,-500.0,0.00022739,2]
[315377600,1708998637858,-500.0,0.00022739,2]
[315377601,1708998637866,-505.30041747,0.00022739,2]
[315377602,1708998637875,-500.0,0.00022739,2]
[315377603,1708998637884,-500.0,0.00022739,2]
[315377604,1708998637894,-500.0,0.00022739,2]
[315377605,1708998637903,-243.93374187,0.00022739,2]
[315377607,1708998637912,-500.0,0.00022739,2]
[315377609,1708998637921,-500.0,0.00022739,2]
[315377611,1708998637930,-522.63180589,0.00022739,2]
[315377613,1708998637940,-500.0,0.00022739,2]
[315377615,1708998637949,-500.0,0.00022739,2]
[315377617,1708998637958,-500.0,0.00022739,2]
[315377619,1708998637967,-514.2662621,0.00022739,2]
[315377621,1708998637976,-500.0,0.00022739,2]
[315377623,1708998637985,-500.0,0.00022739,2]
[315377624,1708998637994,-536.72749601,0.00022739,2]
[315377627,1708998638003,-636.38315919,0.00022739,2]
[315377628,1708998638013,-500.0,0.00022739,2]
[315377630,1708998638022,-506.76310221,0.00022739,2]
[315377632,1708998638031,-510.08441162,0.00022739,2]
[315377635,1708998638041,-500.0,0.00022739,2]
[315377636,1708998638051,-514.70139565,0.00022739,2]
[315377639,1708998638061,-500.0,0.00022739,2]
[315377640,1708998638073,-529.29763915,0.00022739,2]
[315377643,1708998638083,-505.64355269,0.00022739,2]
[315377645,1708998638092,-500.0,0.00022739,2]
[315377647,1708998638102,-168.9742183,0.00022739,2]
[315377649,1708998638111,-500.0,0.00022739,2]
[315377650,1708998638120,-500.0,0.00022739,2]
[315377652,1708998638129,-500.0,0.00022739,2]
[315377654,1708998638138,-500.0,0.00022739,2]
[315377657,1708998638147,-527.11944878,0.00022739,2]
[315377658,1708998638157,-544.23731622,0.00022739,2]
[315377660,1708998638166,-388.66817154,0.00022739,2]
[315377662,1708998638175,-500.0,0.00022739,2]
[315377664,1708998638184,-523.35997753,0.00022739,2]
[315377666,1708998638194,-500.0,0.00022739,2]
[315377668,1708998638203,-506.6635728,0.00022739,2]
[315377670,1708998638213,-500.0,0.00022739,2]
[315377673,1708998638222,-532.95540021,0.00022739,2]
[315377674,1708998638231,-500.0,0.00022739,2]
[315377676,1708998638240,-505.48096619,0.00022739,2]
[315377679,1708998638250,-511.06905184,0.00022739,2]
[315377681,1708998638259,-500.0,0.00022739,2]
[315377683,1708998638268,-500.0,0.00022739,2]
[315377684,1708998638278,-438.98129825,0.00022739,2]
[315377686,1708998638287,-500.0,0.00022739,2]
[315377689,1708998638297,-500.0,0.00022739,2]
[315377691,1708998638306,-508.08796897,0.00022739,2]
[315377693,1708998638317,-500.0,0.00022739,2]
[315377695,1708998638326,-500.0,0.00022739,2]
[315377697,1708998638335,-500.0,0.00022739,2]
[315377698,1708998638344,-500.0,0.00022739,2]
[315377700,1708998638353,-332.59691706,0.00022739,2]
[315377702,1708998638361,-529.50828926,0.00022739,2]
[315377705,1708998638372,-500.0,0.00022739,2]
[315377707,1708998638381,-500.0,0.00022739,2]
[315377709,1708998638391,-500.0,0.00022739,2]
[315377711,1708998638400,-530.33487579,0.00022739,2]
[315377713,1708998638409,-500.0,0.00022739,2]